{"text_format":"1","workbook":"xlsx","n_sheets":1,"sheets":["Prueba Lógica"],"not_rendered":{"charts":0,"images":0,"macros":1,"external_links":0,"defined_names":1,"comments":0,"pivot_tables":0},"unopened":[],"bounds":{"document_bytes":16777216,"sheet_cells":100000,"rows_first":2000,"rows_last":500,"rows_between":2000,"halvings":0,"cell_chars":16384,"cell_head_chars":4096},"cells_cut":0,"cells_raw":0,"read":"whole","date_system":"1900"}

{"sheet":"Prueba Lógica","index":0,"n_rows":51,"n_cols":7,"rows_kept":51,"cut":false,"hidden":false,"merged":[]}
["Nombre","Género","Nacimineto","Edad","Color Pelo","Color Ojos"]
["Connor Phillips","Masculino","1995-10-05",{"$f":"INT((TODAY()-C2)/365)","v":23},"Marrón","Verde","Veinteañero"]
["Harry Mitchell","Masculino","1994-02-22",25,"Negro","Marrón","Veinteañero"]
["Oscar Kelly","Masculino","1992-05-04",27,"Negro","Avellana","Veinteañero"]
["Luca Lee","Masculino","1963-03-31",56,"Rubio","Azul","Sin comentarios"]
["Imogen Ross","Femenino","1983-07-02",36,"Marrón","Azul","Treintañero"]
["William Turner","Masculino","1960-02-01",59,"Marrón","Verde","Sin comentarios"]
["Millie Cooper","Femenino","1962-02-21",57,"Colorado","Marrón","Sin comentarios"]
["Annabelle Reed","Femenino","1961-02-15",58,"Rubio","Verde","Sin comentarios"]
["Lily Nguyen","Femenino","1984-01-10",35,"Rubio","Marrón","Treintañero"]
["Toby Richardson","Masculino","1977-01-01",42,"Calvo","Marrón","En los mejores años"]
["Sophie Ward","Femenino","1986-06-23",33,"Rubio","Marrón","Treintañero"]
["Isabelle Perez","Femenino","1969-08-05",49,"Rubio","Azul","En los mejores años"]
["Olivia Wilson","Femenino","1993-10-21",25,"Negro","Marrón","Veinteañero"]
["Samuel Powell","Masculino","1977-09-04",41,"Colorado","Azul","En los mejores años"]
["Maya Lopez","Femenino","1980-01-29",39,"Rubio","Azul","Treintañero"]
["Zachary Hall","Masculino","1969-12-16",49,"Negro","Azul","En los mejores años"]
["Theo Morgan","Masculino","1982-09-13",36,"Colorado","Azul","Treintañero"]
["Phoebe Foster","Femenino","1965-03-06",54,"Rubio","Verde","Sin comentarios"]
["Charlotte Young","Femenino","1979-11-16",39,"Negro","Verde","Treintañero"]
["Samuel James","Masculino","1970-04-17",49,"Calvo","Verde","En los mejores años"]
["Abigail Allen","Femenino","1982-09-03",36,"Rubio","Marrón","Treintañero"]
["Alice Nguyen","Femenino","1975-02-09",44,"Colorado","Avellana","En los mejores años"]
["Joshua Cook","Masculino","1985-12-06",33,"Marrón","Verde","Treintañero"]
["Adam White","Masculino","1989-09-18",29,"Rubio","Marrón","Veinteañero"]
["Noah Russell","Masculino","1961-01-01",58,"Colorado","Avellana","Sin comentarios"]
["Thomas Sanchez","Masculino","1989-12-31",29,"Calvo","Azul","Veinteañero"]
["Amelia Martinez","Femenino","1993-12-09",25,"Colorado","Azul","Veinteañero"]
["Ellie Wood","Femenino","1979-08-07",39,"Colorado","Avellana","Treintañero"]
["Ava Anderson","Femenino","1994-06-17",25,"Colorado","Avellana","Veinteañero"]
["Ethan Young","Masculino","1964-06-12",55,"Negro","Verde","Sin comentarios"]
["Maisie Sullivan","Femenino","1973-10-06",45,"Negro","Marrón","En los mejores años"]
["Ava Anderson","Femenino","1964-09-17",54,"Negro","Marrón","Sin comentarios"]
["Jasmine Jones","Femenino","1980-02-16",39,"Rubio","Azul","Treintañero"]
["Theo White","Masculino","1983-09-08",35,"Colorado","Azul","Treintañero"]
["Zoe Ramirez","Femenino","1972-05-30",47,"Rubio","Marrón","En los mejores años"]
["Luca Marrón","Masculino","1971-06-12",48,"Colorado","Avellana","En los mejores años"]
["Toby Marrón","Masculino","1973-10-29",45,"Colorado","Avellana","En los mejores años"]
["Freya Mitchell","Femenino","1967-01-17",52,"Marrón","Verde","Sin comentarios"]
["Harrison Carter","Masculino","1981-10-20",37,"Marrón","Marrón","Treintañero"]
["Erin Wilson","Femenino","1970-01-03",49,"Negro","Verde","En los mejores años"]
["Toby Morales","Masculino","1968-01-30",51,"Negro","Verde","Sin comentarios"]
["Daniel Marrón","Masculino","1992-11-24",26,"Calvo","Marrón","Veinteañero"]
["Molly Ross","Femenino","1983-12-15",35,"Rubio","Avellana","Treintañero"]
["Callum Peterson","Masculino","1998-10-18",20,"Colorado","Marrón","Veinteañero"]
["Lola Harris","Femenino","1961-05-06",58,"Marrón","Marrón","Sin comentarios"]
["Daniel Collins","Masculino","1986-03-04",33,"Marrón","Marrón","Treintañero"]
["Leo Morales","Masculino","1964-09-24",54,"Rubio","Avellana","Sin comentarios"]
["Samuel Sanders","Masculino","1991-12-25",27,"Calvo","Marrón","Veinteañero"]
["Noah Williams","Masculino","1966-08-06",52,"Colorado","Azul","Sin comentarios"]
["Dylan Murphy","Masculino","1974-11-16",44,"Colorado","Avellana","En los mejores años"]